bitfinex-derivatives/quotes_BTCF0:USTF0_20250330
["timestamp","ask_amount","ask_price","bid_price","bid_amount"]
[1743357909203,0.00168,82560.0,82559.0,0.13394103]
[1743357909404,0.001,82560.0,82559.0,0.13394103]
[1743357910295,0.00018137,82568.0,82567.0,0.1211597]
[1743357910499,0.00090137,82568.0,82567.0,0.1218397]
[1743357911608,0.00190137,82568.0,82567.0,0.1218397]
[1743357913610,0.00118137,82568.0,82567.0,0.1218397]
[1743357914611,0.1,82600.0,82585.0,0.1211333]
[1743357914807,0.18215836,82586.0,82585.0,0.1211333]
[1743357915002,0.0634,82599.0,82590.0,0.121126]
[1743357915307,0.21857647,82591.0,82590.0,0.482846]
[1743357915604,0.21765647,82591.0,82590.0,0.482846]
[1743357915810,0.21765647,82591.0,82590.0,0.5376554]
[1743357916106,0.21765647,82591.0,82590.0,0.15070298]
[1743357916410,0.00092,82591.0,82590.0,0.04173649]
[1743357916605,0.00092,82591.0,82590.0,0.16194249]
[1743357916801,0.00092,82591.0,82590.0,0.16290249]
[1743357917005,0.00092,82591.0,82590.0,0.01665865]
[1743357917200,0.00092,82591.0,82590.0,0.13682465]
[1743357917405,0.00092,82591.0,82590.0,0.13774465]
[1743357917806,0.1220445,82591.0,82590.0,0.17004465]
[1743357918705,0.1220445,82591.0,82590.0,0.19518219]
[1743357919503,0.1220445,82591.0,82590.0,0.22528219]
[1743357920113,0.1220445,82591.0,82590.0,0.10475619]
[1743357920307,0.1540445,82591.0,82590.0,0.10475619]
[1743357920509,0.1540445,82591.0,82590.0,0.04175619]
[1743357920708,0.1846445,82591.0,82590.0,0.01661865]
[1743357921206,0.5454445,82591.0,82590.0,0.01661865]
[1743357921408,0.5454445,82591.0,82590.0,0.01569865]
[1743357921612,0.6754445,82591.0,82590.0,0.01569865]
[1743357922013,0.6754445,82591.0,82583.0,0.01198585]
[1743357922014,0.1211348,82584.0,82583.0,0.01198585]
[1743357922309,0.12209481,82584.0,82583.0,0.00092]
[1743357922504,0.1211363,82583.0,82582.0,0.00018163]
[1743357922698,0.1845363,82583.0,82582.0,0.00018163]
[1743357922914,0.5460563,82583.0,82582.0,0.00018163]
[1743357923616,0.5460563,82583.0,82582.0,0.01588448]
[1743357924213,0.5460563,82583.0,82582.0,0.13702218]
[1743357924413,0.5460563,82583.0,82582.0,0.01680448]
[1743357925417,0.5460563,82583.0,82582.0,0.16308944]
[1743357927113,0.5460563,82583.0,82582.0,0.19618944]
[1743357927415,0.5460563,82583.0,82582.0,0.04195174]
[1743357927615,0.5460563,82583.0,82582.0,0.04103174]
[1743357927801,0.5460563,82583.0,82582.0,0.04195174]
[1743357928001,0.5460563,82583.0,82582.0,0.04103174]
[1743357928508,0.5460563,82583.0,82582.0,0.01588448]
[1743357929915,0.5460563,82583.0,82582.0,0.00018163]
[1743357930418,0.5460563,82583.0,82582.0,0.00110163]
[1743357930608,0.5460563,82583.0,82582.0,0.00018163]
[1743357930803,0.5460563,82583.0,82582.0,0.01568758]
[1743357932224,0.5460563,82583.0,82582.0,0.00018163]
[1743357932518,0.1211568,82569.0,82568.0,0.1533583]
[1743357932820,0.1211568,82569.0,82568.0,0.1543183]
[1743357933120,0.1220768,82569.0,82568.0,0.1543183]
[1743357933321,0.1849768,82569.0,82568.0,0.1543183]
[1743357933815,0.1849768,82569.0,82568.0,0.16962589]
[1743357934012,0.1849768,82569.0,82568.0,0.20132589]
[1743357934223,0.1849768,82569.0,82568.0,0.20532589]
[1743357934410,0.1849768,82569.0,82568.0,0.08416759]
[1743357935119,0.1849768,82569.0,82568.0,0.00496]
[1743357935713,0.1849768,82569.0,82568.0,0.1261183]
[1743357936113,0.1849768,82569.0,82568.0,0.1562183]
[1743357938824,0.1849768,82569.0,82568.0,0.17139662]
[1743357939314,0.1849768,82569.0,82568.0,0.05023832]
[1743357939515,0.1849768,82569.0,82568.0,0.1562183]
[1743357940024,0.1849768,82569.0,82568.0,0.1876183]
[1743357942527,0.1849768,82569.0,82568.0,0.00496]
[1743357943028,0.1211656,82563.0,82562.0,0.28934785]
[1743357943223,0.1218056,82563.0,82562.0,0.28998785]
[1743357943417,0.13074433,82563.0,82562.0,0.28998785]
[1743357943827,0.19234433,82563.0,82562.0,0.28998785]
[1743357944727,0.19234433,82563.0,82562.0,0.29498785]
[1743357944921,0.19234433,82563.0,82562.0,0.00564]
[1743357945121,0.19234433,82563.0,82562.0,0.03584]
[1743357945818,0.19234433,82563.0,82562.0,0.06824]
[1743357946619,0.19234433,82563.0,82562.0,0.07424]
[1743357946927,0.19234433,82563.0,82562.0,0.1954071]
[1743357947123,0.19234433,82563.0,82562.0,0.07424]
[1743357948317,0.19234433,82563.0,82562.0,0.1954071]
[1743357951427,0.19234433,82563.0,82562.0,0.07424]
[1743357955431,0.55314433,82563.0,82562.0,0.07424]
[1743357955636,0.19234433,82563.0,82562.0,0.07424]
[1743357955836,0.55314433,82563.0,82562.0,0.01164]
[1743357957132,0.68906433,82563.0,82562.0,0.01164]
[1743357960436,0.68906433,82563.0,82562.0,0.00664]
[1743357960636,0.68906433,82563.0,82562.0,0.006]
[1743357960838,0.1201685,82561.0,82560.0,0.00018163]
[1743357961040,0.1208085,82561.0,82560.0,0.00018163]
[1743357962429,0.1208085,82561.0,82560.0,0.00118163]
[1743357965840,0.4816085,82561.0,82560.0,0.00118163]
[1743357966038,0.4816085,82561.0,82560.0,0.00182163]
[1743357966340,0.4816085,82561.0,82560.0,0.12235163]
[1743357966538,0.6170885,82561.0,82560.0,0.12303163]
[1743357967242,0.6170885,82561.0,82560.0,0.00186163]
[1743357967729,0.6170885,82561.0,82560.0,0.12303163]
[1743357968039,0.6170885,82561.0,82560.0,0.18413163]
[1743357969442,0.6170885,82561.0,82560.0,0.06296163]
[1743357969640,0.6170885,82561.0,82560.0,0.2801227]
[1743357970039,0.6488885,82561.0,82560.0,0.2801227]
[1743357972448,0.6488885,82561.0,82560.0,0.06296163]
[1743357973050,0.2880885,82561.0,82560.0,0.06296163]
[1743357973547,0.3204885,82561.0,82560.0,0.06296163]
[1743357975442,0.3204885,82561.0,82560.0,0.18413163]
[1743357975443,0.2562885,82561.0,82560.0,0.18413163]
[1743357975746,0.1218085,82561.0,82560.0,0.18413163]
[1743357975947,0.2555685,82561.0,82560.0,0.4012927]
[1743357976147,0.2555685,82561.0,82560.0,0.2801227]
[1743357976354,0.3190685,82561.0,82560.0,0.2801227]
[1743357978254,0.3190685,82561.0,82560.0,0.35230948]
[1743357980362,0.2555685,82561.0,82560.0,0.35230948]
[1743357980558,0.1218085,82561.0,82560.0,0.47347948]
[1743357980763,0.2550085,82561.0,82560.0,0.47347948]
[1743357982257,0.2550085,82561.0,82560.0,0.18413163]
[1743357982754,0.1218085,82561.0,82560.0,0.18413163]
[1743357983054,0.2547285,82561.0,82560.0,0.18413163]
[1743357984351,0.1218085,82561.0,82560.0,0.18413163]
[1743357984552,0.00064,82561.0,82560.0,0.18413163]
[1743357984961,0.1211671,82562.0,82561.0,0.0605836]
[1743357985155,0.1218071,82562.0,82561.0,0.0612236]
[1743357985361,0.1218071,82562.0,82561.0,0.1263236]
[1743357986266,0.1218071,82562.0,82561.0,0.1273236]
[1743357986766,0.00064,82562.0,82561.0,0.1273236]
[1743357987356,0.1211616,82566.0,82565.0,0.1211627]
[1743357987558,0.1211616,82566.0,82565.0,0.13357178]
[1743357987967,0.1930972,82571.0,82567.0,0.1211583]
[1743357988168,0.1211561,82570.0,82569.0,0.1211553]
[1743357988670,0.1211561,82570.0,82569.0,0.1846553]
[1743357989970,0.1241561,82570.0,82569.0,0.1846553]
[1743357990355,0.1241561,82570.0,82569.0,0.4745969]
[1743357991671,0.003,82570.0,82569.0,0.4745969]
[1743357992369,0.003,82570.0,82569.0,0.4752769]
[1743357993169,0.003,82570.0,82569.0,0.49075514]
[1743357993472,0.003,82570.0,82569.0,0.20081354]
[1743357994069,0.00018123,82577.0,82576.0,0.1211465]
[1743357994264,0.00018123,82577.0,82576.0,0.1217865]
[1743357994265,0.00082123,82577.0,82576.0,0.1217865]
[1743357994464,0.12196633,82577.0,82576.0,0.1217865]
[1743357994664,0.12200633,82577.0,82576.0,0.1842865]
[1743357995472,0.12400633,82577.0,82576.0,0.1842865]
[1743357995866,0.12500633,82577.0,82576.0,0.1842865]
[1743357996269,0.00386123,82577.0,82576.0,0.1842865]
[1743357996771,0.00318123,82577.0,82576.0,0.1842865]
[1743357997364,0.00318123,82577.0,82576.0,0.19984503]
[1743357998373,0.00018123,82577.0,82576.0,0.20184503]
[1743357998674,0.00018123,82577.0,82576.0,0.20384503]
[1743357998974,0.3608,82587.0,82586.0,0.1211319]
[1743357999176,0.88905378,82597.0,82595.0,0.1211187]
[1743357999177,0.2529582,82596.0,82595.0,0.1211187]
[1743357999470,0.1221582,82596.0,82595.0,0.13335544]
[1743357999666,0.1221582,82596.0,82595.0,0.13399544]
[1743358000066,0.1221582,82596.0,82595.0,0.19759544]
[1743358001876,0.1231582,82596.0,82595.0,0.19759544]
[1743358002581,0.1241582,82596.0,82595.0,0.19759544]
[1743358003769,0.00204,82596.0,82595.0,0.19759544]
[1743358003963,0.00204,82596.0,82595.0,0.19859544]
[1743358004375,0.00204,82596.0,82595.0,0.19759544]
[1743358004670,0.00204,82596.0,82595.0,0.19859544]
[1743358005264,0.2544772,82596.0,82595.0,0.00164]
[1743358005573,0.2544772,82596.0,82595.0,0.002]
[1743358005574,0.1221572,82596.0,82595.0,0.002]
[1743358005870,0.2534372,82596.0,82595.0,0.002]
[1743358006480,0.2534372,82596.0,82595.0,0.001]
[1743358006975,0.9750372,82596.0,82595.0,0.001]
[1743358007172,0.1211231,82592.0,82591.0,0.0328]
[1743358007371,0.1217631,82592.0,82591.0,0.03344]
[1743358007571,0.1217631,82592.0,82590.0,0.0313]
[1743358007572,0.1211245,82591.0,82590.0,0.0436668]
[1743358007771,0.1873645,82591.0,82590.0,0.0443068]
[1743358008476,0.1873645,82591.0,82590.0,0.0436668]
[1743358008867,0.1863645,82591.0,82590.0,0.0436668]
[1743358009063,0.1853645,82591.0,82590.0,0.0443068]
[1743358009573,0.1853645,82591.0,82590.0,0.0436668]
[1743358010375,0.1853645,82591.0,82590.0,0.0313]
[1743358010572,0.1853645,82591.0,82590.0,0.0323]
[1743358012681,0.1853645,82591.0,82590.0,0.03294]
[1743358013278,0.1853645,82591.0,82590.0,0.0323]
[1743358013682,0.1853645,82591.0,82590.0,0.03298]
[1743358015184,0.5461645,82591.0,82590.0,0.03298]
[1743358016488,0.5767645,82591.0,82590.0,0.03298]
[1743358017073,0.1527645,82591.0,82590.0,0.187306]
[1743358017386,0.5135645,82591.0,82590.0,0.217306]
[1743358020781,0.5135645,82591.0,82590.0,0.43399459]
[1743358020976,0.5135645,82591.0,82590.0,0.40399459]
[1743358021185,0.5445645,82591.0,82590.0,0.40399459]
[1743358022688,0.1837645,82591.0,82590.0,0.40399459]
[1743358023481,0.1837645,82591.0,82590.0,0.187306]
[1743358025688,0.1837645,82591.0,82590.0,0.06618]
[1743358025883,0.5445645,82591.0,82590.0,0.00168]
[1743358026192,0.5445645,82591.0,82590.0,0.001]
[1743358026490,0.5445645,82591.0,82590.0,0.00164]
[1743358027187,0.5445645,82591.0,82590.0,0.001]
[1743358027388,0.6656438,82591.0,82590.0,0.00164]
[1743358029491,1.0264438,82591.0,82590.0,0.00164]
[1743358029697,0.121126,82590.0,82587.0,0.00018163]
[1743358029990,0.1211289,82588.0,82587.0,0.00064]
[1743358030294,0.1219289,82588.0,82587.0,0.00064]
[1743358030487,0.1837289,82588.0,82587.0,0.00064]
[1743358030693,0.1211436,82578.0,82577.0,0.1855444]
[1743358030894,0.6117436,82578.0,82577.0,0.1861844]
[1743358031088,0.6107436,82578.0,82577.0,0.1861844]
[1743358031597,0.6715436,82578.0,82577.0,0.1861844]
[1743358031798,0.6715436,82578.0,82577.0,0.06504]
[1743358032000,0.6715436,82578.0,82577.0,0.0644]
[1743358032995,0.1817277,82574.0,82573.0,0.1211503]
[1743358033184,0.1745277,82574.0,82573.0,0.1217903]
[1743358033585,0.1745277,82574.0,82573.0,0.00064]
[1743358034195,0.2365277,82574.0,82573.0,0.00564]
[1743358034395,0.2365277,82574.0,82573.0,0.01064]
[1743358034790,0.2365277,82574.0,82573.0,0.00564]
[1743358035097,0.2375277,82574.0,82573.0,0.00564]
[1743358036085,0.2375277,82574.0,82573.0,0.00064]
[1743358036291,0.2395277,82574.0,82573.0,0.0327]
[1743358036494,0.9611277,82574.0,82573.0,0.03342]
[1743358037084,0.9300277,82574.0,82573.0,0.03342]
[1743358037599,0.9300277,82574.0,82573.0,0.06432]
[1743358037803,0.9300277,82574.0,82573.0,0.0636]
[1743358039200,0.9300277,82574.0,82573.0,0.06436]
[1743358039999,0.5692277,82574.0,82573.0,0.06436]
[1743358041090,0.1211553,82570.0,82569.0,0.00018163]
[1743358041389,0.1219553,82570.0,82569.0,0.00018163]
[1743358041697,0.1219553,82570.0,82569.0,0.12133843]
[1743358041890,0.1219553,82570.0,82569.0,0.12213843]
[1743358042092,0.1536553,82570.0,82569.0,0.12213843]
[1743358042590,0.1546553,82570.0,82569.0,0.12213843]
[1743358044204,0.1546553,82570.0,82569.0,0.00098163]
[1743358044399,0.1546553,82570.0,82569.0,0.00018163]
[1743358044601,0.1546553,82570.0,82569.0,0.06312163]
[1743358044801,0.1546553,82570.0,82569.0,0.18427843]
[1743358047010,0.1229553,82570.0,82569.0,0.18427843]
[1743358047510,0.4837553,82570.0,82569.0,0.18427843]
[1743358047898,0.1229553,82570.0,82569.0,0.18427843]
[1743358048206,0.4837553,82570.0,82569.0,0.18427843]
[1743358049098,0.5154553,82570.0,82569.0,0.18427843]
[1743358049700,0.5154553,82570.0,82569.0,0.06312163]
[1743358049901,0.5154553,82570.0,82569.0,0.06248163]
[1743358050095,0.5154553,82570.0,82569.0,0.06320163]
[1743358051005,0.5154553,82570.0,82569.0,0.18435843]
[1743358051708,0.5154553,82570.0,82569.0,0.06320163]
[1743358055009,0.1211685,82561.0,82553.0,0.36261686]
[1743358055205,0.2489285,82561.0,82560.0,0.28999453]
[1743358055602,0.2489285,82561.0,82560.0,0.00064]
[1743358055803,0.3128285,82561.0,82560.0,0.00064]
[1743358056309,0.2489285,82561.0,82560.0,0.12381]
[1743358056505,0.2489285,82561.0,82560.0,0.12581]
[1743358057103,0.2489285,82561.0,82560.0,0.19101]
[1743358058407,0.1219685,82561.0,82560.0,0.19101]
[1743358058713,0.2490485,82561.0,82560.0,0.19101]
[1743358062101,0.0008,82561.0,82560.0,0.19101]
[1743358062306,0.1211605,82567.0,82566.0,0.1211583]
[1743358062500,0.00018163,82569.0,82568.0,0.1211583]
[1743358062707,0.3608,82582.0,82581.0,0.1211392]
[1743358062917,0.36168001,82582.0,82581.0,0.1211392]
[1743358063209,0.36168001,82582.0,82581.0,0.1220192]
[1743358063614,0.36168001,82582.0,82581.0,0.1833192]
[1743358064315,0.36468001,82582.0,82581.0,0.1833192]
[1743358065413,0.36468001,82582.0,82581.0,0.1853192]
[1743358065613,0.36468001,82582.0,82581.0,0.19770957]
[1743358065811,0.36168001,82582.0,82581.0,0.19970957]
[1743358066508,0.48281771,82582.0,82581.0,0.19970957]
[1743358066709,0.54761771,82582.0,82581.0,0.19970957]
[1743358067207,0.36168001,82582.0,82581.0,0.19970957]
[1743358067612,0.48281771,82582.0,82581.0,0.19970957]
[1743358067816,0.36168001,82582.0,82581.0,0.19970957]
[1743358068318,0.00088001,82582.0,82581.0,0.48699557]
[1743358068514,0.1211356,82584.0,82583.0,0.1211363]
[1743358070821,0.1211356,82584.0,82583.0,0.1231363]
[1743358074427,0.12201561,82584.0,82583.0,0.1240163]
[1743358076623,0.18431561,82584.0,82583.0,0.1240163]
[1743358080220,0.18431561,82584.0,82583.0,0.1849163]
[1743358081122,0.18431561,82584.0,82583.0,0.06378]
[1743358081325,0.31027561,82584.0,82583.0,0.002]
[1743358083128,0.31027561,82584.0,82583.0,0.065]
[1743358083324,0.31027561,82584.0,82583.0,0.06592]
[1743358083922,0.31027561,82584.0,82583.0,0.065]
[1743358084535,0.31027561,82584.0,82583.0,0.06588]
[1743358085825,0.67107561,82584.0,82583.0,0.06588]
[1743358086025,0.67107561,82584.0,82583.0,0.065]
[1743358086425,0.67107561,82584.0,82583.0,0.06596]
[1743358086640,0.54511561,82584.0,82583.0,0.1870963]
[1743358086834,0.48281561,82584.0,82583.0,0.1870163]
[1743358087031,0.54771561,82584.0,82583.0,0.06588]
[1743358087337,0.54771561,82584.0,82583.0,0.065]
[1743358087638,0.57881561,82584.0,82583.0,0.065]
[1743358087832,0.57881561,82584.0,82583.0,0.1861363]
[1743358087833,0.42658001,82584.0,82583.0,0.1861363]
[1743358088133,0.00018163,82590.0,82589.0,0.1211275]
[1743358088337,0.00018163,82590.0,82589.0,0.1222875]
[1743358088338,0.00082163,82590.0,82589.0,0.1222875]
[1743358088731,0.12194763,82590.0,82589.0,0.1831875]
[1743358088931,0.00082163,82590.0,82589.0,0.19851715]
[1743358090039,0.00182163,82590.0,82589.0,0.19851715]
[1743358091041,0.00282163,82590.0,82589.0,0.19851715]
[1743358092240,0.06782163,82590.0,82589.0,0.19851715]
[1743358092446,0.06782163,82590.0,82589.0,0.21422923]
[1743358094042,0.06846163,82590.0,82589.0,0.21422923]
[1743358094445,0.06846163,82590.0,82589.0,0.21417746]
[1743358094852,0.06846163,82590.0,82589.0,0.19851715]
[1743358098648,0.18958763,82590.0,82589.0,0.01648965]
[1743358099148,0.18958763,82590.0,82589.0,0.42713468]
[1743358099650,0.18958763,82590.0,82589.0,0.41180503]
[1743358100241,0.55038763,82590.0,82589.0,0.41180503]
[1743358100651,0.42926163,82590.0,82589.0,0.41180503]
[1743358100854,0.36426163,82590.0,82589.0,0.41180503]
[1743358101239,0.36426163,82590.0,82589.0,0.47500503]
[1743358102655,0.36426163,82590.0,82589.0,0.1854875]
[1743358103550,0.00346163,82590.0,82589.0,0.1854875]
[1743358105653,0.12458763,82590.0,82589.0,0.1854875]
[1743358105854,0.00346163,82590.0,82589.0,0.1854875]
[1743358106055,0.12458763,82590.0,82589.0,0.1854875]
[1743358106358,0.15718763,82590.0,82589.0,0.1854875]
[1743358108062,0.15718763,82590.0,82589.0,0.47500503]
[1743358109551,0.12458763,82590.0,82589.0,0.47500503]
[1743358110252,0.15608763,82590.0,82589.0,0.47500503]
[1743358110651,0.15608763,82590.0,82589.0,0.1854875]
[1743358111655,0.03496163,82590.0,82589.0,0.1854875]
[1743358112565,0.06516163,82590.0,82589.0,0.1854875]
[1743358113365,0.00346163,82590.0,82589.0,0.1854875]
[1743358114855,0.12458763,82590.0,82589.0,0.1854875]
[1743358115064,0.03596163,82590.0,82589.0,0.1854875]
[1743358115965,0.00346163,82590.0,82589.0,0.1854875]
[1743358123168,0.12458763,82590.0,82589.0,0.1222875]
[1743358123372,0.12458763,82590.0,82589.0,0.00116]
[1743358123573,0.12458763,82590.0,82589.0,0.1222875]
[1743358124961,0.48538763,82590.0,82589.0,0.1222875]
[1743358125574,0.36426163,82590.0,82589.0,0.1222875]
[1743358125771,0.36426163,82590.0,82589.0,0.1865875]
[1743358126863,0.36426163,82590.0,82589.0,0.47651325]
[1743358127871,0.00346163,82590.0,82589.0,0.47651325]
[1743358128182,0.00282163,82590.0,82589.0,0.47651325]
[1743358129175,0.00218163,82590.0,82589.0,0.47651325]
[1743358129379,0.00334163,82590.0,82589.0,0.68155269]
[1743358129679,0.00218163,82590.0,82589.0,0.68155269]
[1743358129886,0.00334163,82590.0,82589.0,0.68155269]
[1743358130385,0.060959,82596.0,82589.0,0.68155269]
[1743358130386,0.3608,82624.0,82611.0,0.1210952]
[1743358130685,0.0331,82617.0,82611.0,0.1210952]
[1743358130879,0.0303,82616.0,82611.0,0.2157152]
[1743358131481,0.0044,82612.0,82611.0,0.2157152]
[1743358132378,0.0094,82612.0,82611.0,0.2157152]
[1743358132573,0.00068984,82612.0,82611.0,0.2157152]
[1743358133080,0.0318,82623.0,82620.0,0.0605409]
[1743358133284,0.00064,82627.0,82626.0,0.1210732]
[1743358133584,0.00064,82627.0,82626.0,0.1882932]
[1743358133585,0.00072,82627.0,82626.0,0.1882932]
[1743358133777,0.0004,82628.0,82627.0,0.1210718]
[1743358133983,0.0004,82628.0,82627.0,0.1225918]
[1743358134188,0.0004,82628.0,82627.0,0.1882918]
[1743358135082,0.0024,82628.0,82627.0,0.1882918]
[1743358136278,0.0034,82628.0,82627.0,0.1882918]
[1743358139478,0.0024,82628.0,82627.0,0.1922918]
[1743358139679,0.0024,82628.0,82627.0,0.1952918]
[1743358139680,0.0004,82628.0,82627.0,0.1952918]
[1743358140088,0.0004,82628.0,82627.0,0.1922918]
[1743358140294,0.0004,82628.0,82627.0,0.1952918]
[1743358141585,0.0004,82628.0,82627.0,0.1942918]
[1743358142592,0.0004,82628.0,82627.0,0.20639725]
[1743358142888,0.0004,82628.0,82627.0,0.21039725]
[1743358143280,0.0004,82628.0,82627.0,0.22606769]
[1743358143680,1.1030871,82665.0,82660.0,0.1815293]
[1743358143882,0.1210259,82661.0,82660.0,0.060511]
[1743358144086,0.1216659,82661.0,82660.0,0.060511]
[1743358144394,0.121662,82661.0,82660.0,0.060511]
[1743358144694,0.121662,82661.0,82654.0,0.00018146]
[1743358144887,0.1210307,82655.0,82654.0,0.12281296]
[1743358145085,0.1210307,82655.0,82654.0,0.12121296]
[1743358145282,0.0637,82656.0,82655.0,0.1210307]
[1743358145682,0.0004,82692.0,82655.0,0.96042687]
[1743358145884,0.0604611,82730.0,82699.0,0.1209664]
[1743358146084,0.0637,82707.0,82699.0,0.4838464]
[1743358146495,0.03944704,82700.0,82699.0,0.4838464]
[1743358146890,0.03944704,82700.0,82699.0,0.49590233]
[1743358147593,0.0327,82713.0,82707.0,0.1209547]
[1743358147893,0.031,82712.0,82707.0,0.4837947]
[1743358148095,0.031,82712.0,82707.0,0.50185675]
[1743358149209,0.031,82712.0,82707.0,0.57698808]
[1743358150008,0.031,82712.0,82707.0,0.54558808]
[1743358150411,0.031,82712.0,82707.0,0.52752603]
[1743358151113,0.031,82712.0,82707.0,0.4837947]
[1743358152111,0.04152377,82723.0,82720.0,0.1209342]
[1743358152112,0.03478713,82723.0,82720.0,0.1209342]
[1743358152304,0.0004,82740.0,82723.0,0.1209313]
[1743358152305,0.14732,82740.0,82723.0,0.1209313]
[1743358152512,0.14732,82740.0,82723.0,0.1853713]
[1743358152707,0.1209163,82734.0,82723.0,0.1853713]
[1743358153011,0.1209238,82729.0,82723.0,0.13950478]
[1743358153216,0.1209186,82732.0,82723.0,0.13950478]
[1743358153413,0.14732,82740.0,82723.0,0.13950478]
[1743358153713,0.14776,82740.0,82723.0,0.20190478]
[1743358154012,0.0004,82740.0,82723.0,0.20190478]
[1743358154212,0.1213074,82740.0,82723.0,0.20190478]
[1743358154417,0.1209088,82739.0,82723.0,0.20190478]
[1743358154618,0.1209114,82737.0,82723.0,0.20190478]
[1743358154814,0.0604573,82735.0,82723.0,0.20190478]
[1743358155015,0.0004,82740.0,82723.0,0.21883618]
[1743358155211,0.0004,82740.0,82739.0,0.1209079]
[1743358155411,0.0004,82740.0,82739.0,0.8445079]
[1743358155802,0.0004,82740.0,82739.0,0.9081079]
[1743358156007,0.0004,82740.0,82739.0,0.96962994]
[1743358156306,0.0604339,82767.0,82755.0,0.1208845]
[1743358156506,0.00918647,82762.0,82755.0,0.93154203]
[1743358156716,0.1957,82763.0,82755.0,0.96244203]
[1743358156913,0.121283,82756.0,82755.0,0.93154203]
[1743358157120,0.12062625,82756.0,82755.0,0.8868535]
[1743358157308,0.12062625,82756.0,82755.0,0.96993907]
[1743358157515,0.12062625,82756.0,82755.0,0.84905457]
[1743358158005,0.39146413,82756.0,82755.0,0.43911597]
[1743358158207,0.24146413,82756.0,82755.0,0.43911597]
[1743358158414,0.12062625,82756.0,82755.0,0.43911597]
[1743358158613,0.27062625,82756.0,82755.0,0.43911597]
[1743358158811,0.27062625,82756.0,82755.0,0.37945348]
[1743358159006,0.12062625,82756.0,82755.0,0.01865348]
[1743358159715,0.12062625,82756.0,82755.0,0.1230045]
[1743358160019,0.0286,82758.0,82755.0,0.1230045]
[1743358160020,0.033,82757.0,82756.0,0.1208816]
[1743358160211,0.033,82757.0,82756.0,0.1546016]
[1743358160413,0.1538816,82757.0,82756.0,0.1546016]
[1743358160613,0.1538816,82757.0,82756.0,0.17049108]
[1743358161319,0.033,82757.0,82756.0,0.17049108]
[1743358161519,0.033,82757.0,82756.0,0.1546016]
[1743358161820,0.1538816,82757.0,82756.0,0.1546016]
[1743358162225,0.09530558,82757.0,82756.0,0.1546016]
[1743358162523,0.09530558,82757.0,82756.0,0.00212]
[1743358163207,0.12720558,82757.0,82756.0,0.123003]
[1743358163825,0.12720558,82757.0,82756.0,0.00212]
[1743358164516,0.09530558,82757.0,82756.0,0.123003]
[1743358164720,0.09530558,82757.0,82756.0,0.06352]
[1743358165428,0.09530558,82757.0,82756.0,0.184403]
[1743358165615,0.1682,82762.0,82758.0,0.181315]
[1743358165922,0.0286,82763.0,82762.0,0.1208743]
[1743358166120,0.0286,82763.0,82762.0,0.1228743]
[1743358166318,0.1494728,82763.0,82762.0,0.1228743]
[1743358166516,0.16812,82768.0,82767.0,0.120867]
[1743358166711,0.2889855,82768.0,82767.0,0.483667]
[1743358166911,0.16812,82768.0,82767.0,0.483667]
[1743358167116,0.2889855,82768.0,82767.0,0.3628]
[1743358167315,0.1208655,82768.0,82767.0,0.3628]
[1743358168024,0.1494655,82768.0,82767.0,0.3628]
[1743358168218,0.68198587,82768.0,82767.0,0.002]
[1743358168413,0.1208743,82762.0,82761.0,0.3608]
[1743358168723,0.1208903,82751.0,82750.0,0.21346991]
[1743358168918,0.29057031,82751.0,82750.0,0.21442991]
[1743358169118,0.29992162,82751.0,82750.0,0.21442991]
[1743358169320,0.29992162,82751.0,82750.0,0.33532171]
[1743358169720,0.29992162,82751.0,82750.0,0.21442991]
[1743358169920,0.32032162,82751.0,82750.0,0.21442991]
[1743358170116,0.34892162,82751.0,82750.0,0.21442991]
[1743358170319,0.21768,82751.0,82750.0,0.21442991]
[1743358170517,0.3398503,82751.0,82750.0,0.21442991]
[1743358171019,0.3398503,82751.0,82750.0,0.33532171]
[1743358172131,0.2904996,82751.0,82750.0,0.00096]
[1743358172618,0.41134479,82751.0,82750.0,0.00096]
[1743358173019,0.2904996,82751.0,82750.0,0.00096]
[1743358173423,0.1221396,82751.0,82750.0,0.00096]
[1743358173620,0.0604439,82753.0,82750.0,0.00096]
[1743358173621,0.16832,82753.0,82750.0,0.00096]
[1743358173823,0.1208903,82751.0,82750.0,0.00096]
[1743358175326,0.1208903,82751.0,82750.0,0.2894683]
[1743358176316,0.1208903,82751.0,82750.0,0.3198683]
[1743358176530,0.1208903,82751.0,82750.0,0.2894683]
[1743358176730,0.24173549,82751.0,82750.0,0.2894683]
[1743358178019,0.29173549,82751.0,82750.0,0.2894683]
[1743358179331,0.29173549,82751.0,82750.0,0.00096]
[1743358179528,0.1208918,82750.0,82749.0,0.2885083]
[1743358179833,0.1208918,82750.0,82749.0,0.2902683]
[1743358180029,0.1208918,82750.0,82749.0,0.3207683]
[1743358180820,0.1208918,82750.0,82749.0,0.3190083]
[1743358182139,0.1228918,82750.0,82749.0,0.3190083]
[1743358182322,0.1228918,82750.0,82749.0,0.3207283]
[1743358182727,0.1208918,82750.0,82749.0,0.3207283]
[1743358183026,0.1248918,82750.0,82749.0,0.3207283]
[1743358183223,0.24573845,82750.0,82749.0,0.2902283]
[1743358183436,0.24573845,82750.0,82749.0,0.48109031]
[1743358183631,0.65653845,82750.0,82749.0,0.48109031]
[1743358183934,0.70653845,82750.0,82749.0,0.48109031]
[1743358185130,0.65653845,82750.0,82749.0,0.48109031]
[1743358185733,0.65253845,82750.0,82749.0,0.48109031]
[1743358185930,0.65453845,82750.0,82749.0,0.48109031]
[1743358186127,0.70453845,82750.0,82749.0,0.48109031]
[1743358186328,0.1209123,82736.0,82735.0,0.0301]
[1743358186536,0.28679231,82736.0,82735.0,0.0313]
[1743358187638,0.2992073,82736.0,82735.0,0.0313]
[1743358187832,0.4200744,82736.0,82735.0,0.0313]
[1743358188039,0.4700744,82736.0,82735.0,0.0313]
[1743358188740,0.45765941,82736.0,82735.0,0.0313]
[1743358189530,0.45965941,82736.0,82735.0,0.0313]
[1743358191834,0.45965941,82736.0,82735.0,0.0301]
[1743358192236,0.28879231,82736.0,82735.0,0.0301]
[1743358193445,0.00320001,82736.0,82735.0,0.0301]
[1743358193736,0.0604518,82742.0,82735.0,0.0301]
[1743358193737,0.1813607,82742.0,82741.0,0.1209038]
[1743358194047,0.0619722,82742.0,82741.0,0.1224238]
[1743358194241,0.00018004,82744.0,82741.0,0.1224238]
[1743358194435,0.1209085,82742.0,82741.0,0.4832238]
[1743358195436,0.1209085,82742.0,82741.0,0.49836238]
[1743358196339,0.1209085,82742.0,82741.0,0.4832238]
[1743358197939,0.1209085,82742.0,82741.0,0.36232]
[1743358198137,0.1209085,82742.0,82741.0,0.42532]
[1743358198443,0.24176683,82742.0,82741.0,0.06452]
[1743358198848,0.25402845,82742.0,82741.0,0.06452]
[1743358199939,0.1209085,82742.0,82741.0,0.06452]
[1743358201143,0.1209085,82742.0,82741.0,0.07978622]